{"text_format":"1","workbook":"xlsx","n_sheets":9,"sheets":["Instructions","Tonnage Report","Conversions","Single Stream","Paper Sort Tool","Commingled","Measure A Mound","CoMun","Materials"],"not_rendered":{"charts":0,"images":5,"macros":1,"external_links":1,"defined_names":186,"comments":0,"pivot_tables":0},"unopened":[],"bounds":{"document_bytes":16777216,"sheet_cells":100000,"rows_first":2000,"rows_last":500,"rows_between":2000,"halvings":0,"cell_chars":16384,"cell_head_chars":4096},"cells_cut":0,"cells_raw":0,"read":"whole","date_system":"1900"}

{"sheet":"Instructions","index":0,"n_rows":0,"n_cols":0,"rows_kept":0,"cut":false,"hidden":false,"merged":[]}

{"sheet":"Tonnage Report","index":1,"n_rows":6,"n_cols":12,"rows_kept":6,"cut":false,"hidden":false,"merged":[]}
["Report Year *:",2023,null,"Certified By *:","CRP sign here","(Certified Recycling Coordinator CRC)"]
[null,null,null,"Completed By *:","MRC sign here","(Authorized individual on behalf of submitting municipality)"]
["Tax Year *:",2023,null,null,null,"Please Note - The same invidual may both certify and complete the report if they are a CRC and employed by the reporting municipality."]
["Tax Amount *:",0]
["** Before filling out data in the spreadsheet please click \"Enable Macros\" above. The form will not function correctly if macros are not enabled. **"]
["County","Municipality","Sector","Material","Material Amount (tons)","End Market Name","End Market State","End Market Street Address","End Market County","End Market Municipality","End Market Zip Code","End Market Phone Number"]

{"sheet":"Conversions","index":2,"n_rows":158,"n_cols":5,"rows_kept":158,"cut":false,"hidden":false,"merged":[[0,0,0,4],[1,0,1,1],[1,3,1,4],[5,0,5,4],[6,0,6,1],[6,3,6,4],[10,0,10,4],[11,0,11,1],[11,3,11,4],[15,0,15,4],[16,0,16,1],[16,3,16,4],[20,0,20,4],[21,0,21,1],[21,3,21,4],[25,0,25,4],[26,0,26,1],[26,3,26,4],[50,0,50,4],[54,0,54,4],[58,0,58,4],[30,0,30,4],[31,0,31,1],[31,3,31,4],[35,0,35,4],[36,0,36,1],[36,3,36,4],[40,0,40,4],[41,0,41,1],[41,3,41,4],[45,0,45,4],[46,0,46,1],[46,3,46,4],[62,0,62,4],[66,0,66,4],[118,0,118,4],[74,0,74,4],[78,0,78,4],[82,0,82,4],[86,0,86,4],[90,0,90,4],[94,0,94,4],[98,0,98,4],[70,0,70,4],[102,0,102,4],[106,0,106,4],[110,0,110,4],[114,0,114,4],[146,0,146,4],[155,0,155,4],[122,0,122,4],[126,0,126,4],[130,0,130,4],[134,0,134,4],[138,0,138,4],[142,0,142,4],[151,0,151,4]]}
["01 CORRUGATED"]
["UNCOMPACTED",null,null,"COMPACTED"]
["CUBIC YARDS","TONS",null,"CUBIC YARDS","TONS"]
[null,{"$f":"SUM(A4/50)","v":0},null,null,{"$f":"SUM(D4/4)","v":0}]
[]
["02 MIXED OFFICE PAPER"]
["UNCOMPACTED",null,null,"COMPACTED"]
["CUBIC YARDS","TONS",null,"CUBIC YARDS","TONS"]
[null,{"$f":"SUM(A9/5)","v":0},null,null,{"$f":"SUM(D9/2.65)","v":0}]
[]
["03 NEWSPAPER"]
["UNCOMPACTED",null,null,"COMPACTED"]
["CUBIC YARDS","TONS",null,"CUBIC YARDS","TONS"]
[null,{"$f":"SUM(A14/4)","v":0},null,null,{"$f":"SUM(D14/2.31)","v":0}]
[]
["05 GLASS CONTAINERS (loose)"]
["UNCOMPACTED",null,null,"COMPACTED"]
["CUBIC YARDS","TONS",null,"CUBIC YARDS","TONS"]
[null,{"$f":"SUM(A19/3.33)","v":0},null,null,{"$f":"SUM(D19/1.33)","v":0}]
[]
["05 GLASS CONTAINERS (broken)"]
["UNCOMPACTED",null,null,"COMPACTED"]
["CUBIC YARDS","TONS",null,"CUBIC YARDS","TONS"]
[null,{"$f":"SUM(A24/2)","v":0},null,null,{"$f":"SUM(D24/1.33)","v":0}]
[]
["06 ALUMINUM CONTAINERS"]
["UNCOMPACTED",null,null,"COMPACTED"]
["CUBIC YARDS","TONS",null,"CUBIC YARDS","TONS"]
[null,{"$f":"SUM(A29/27.02)","v":0},null,null,{"$f":"SUM(D29/8)","v":0}]
[]
["07 STEEL CONTAINERS"]
["UNCOMPACTED",null,null,"COMPACTED"]
["CUBIC YARDS","TONS",null,"CUBIC YARDS","TONS"]
[null,{"$f":"SUM(A34/13.33)","v":0},null,null,{"$f":"SUM(D34/5.71)","v":0}]
[]
["07 (OIL FILTERS) report as STEEL CONTAINERS"]
["# OF FILTERS",null,null,"55 GAL DRUMS"]
["#","TONS",null,"1 DRUM","TONS"]
[null,{"$f":"SUM(A39/3/2000)","v":0},null,null,{"$f":"SUM(D39*0.25)","v":0}]
[]
["08 PLASTIC CONTAINERS (pete)"]
["UNCOMPACTED",null,null,"COMPACTED"]
["CUBIC YARDS","TONS",null,"CUBIC YARDS","TONS"]
[null,{"$f":"SUM(A44/66.66)","v":0},null,null,{"$f":"SUM(D44/3.88)","v":0}]
[]
["08 PLASTIC CONTAINERS (hdpe)"]
["UNCOMPACTED",null,null,"COMPACTED"]
["CUBIC YARDS","TONS",null,"CUBIC YARDS","TONS"]
[null,{"$f":"SUM(A49/80)","v":0},null,null,{"$f":"SUM(D49/7.41)","v":0}]
[]
["12 ANTI FREEZE"]
["POUNDS","GALLONS",null,"GALLONS","TONS"]
[null,{"$f":"SUM(A53/7)","v":0},null,null,{"$f":"SUM(D53/285.71)","v":0}]
[]
["13 AUTO BATTERIES"]
["POUNDS","# OF BATTERIES",null,"# OF BATTERIES","TONS"]
[null,{"$f":"SUM(A57/33)","v":0},null,null,{"$f":"SUM(D57/60.61)","v":0}]
[]
["14 AUTOS"]
["POUNDS","# OF AUTOS",null,"# OF AUTOS","TONS"]
[null,{"$f":"SUM(A61/4079)","v":0},null,null,{"$f":"SUM(D61*2.03)","v":0}]
[]
["15 AUTO TIRES"]
["POUNDS","# OF TIRES",null,"# OF TIRES","TONS"]
[null,{"$f":"SUM(A65/20)","v":0},null,null,{"$f":"SUM(D65/100)","v":0}]
[]
["15 TRUCK TIRES"]
["POUNDS","# OF TIRES",null,"# OF TIRES","TONS"]
[null,{"$f":"SUM(A69/90)","v":0},null,null,{"$f":"SUM(D69/22.22)","v":0}]
[]
["16 MOTOR OIL"]
["POUNDS","GALLONS",null,"GALLONS","TONS"]
[null,{"$f":"SUM(A73/7)","v":0},null,null,{"$f":"SUM(D73/285.71)","v":0}]
[]
["17 BRUSH COMPACTED"]
["POUNDS","CY",null,"CY","TONS"]
[null,{"$f":"SUM(A77/500)","v":0},null,null,{"$f":"SUM(D77/5)","v":0}]
[]
["17 BRUSH CHIPPED"]
["POUNDS","CY",null,"CY","TONS"]
[null,{"$f":"SUM(A81/500)","v":0},null,null,{"$f":"SUM(D81/4)","v":0}]
[]
["17 BRUSH UNCHIPPED"]
["POUNDS","CY",null,"CY","TONS"]
[null,{"$f":"SUM(A85/250)","v":0},null,null,{"$f":"SUM(D85/8)","v":0}]
[]
["18 GRASS COMPACTED"]
["POUNDS","CY",null,"CY","TONS"]
[null,{"$f":"SUM(A89/1111)","v":0},null,null,{"$f":"SUM(D89/1.8)","v":0}]
[]
["18 GRASS UNCOMPACTED"]
["POUNDS","CY",null,"CY","TONS"]
[null,{"$f":"SUM(A93/741)","v":0},null,null,{"$f":"SUM(D93/2.7)","v":0}]
[]
["19 LEAVES COMPACTED"]
["POUNDS","CY",null,"CY","TONS"]
[null,{"$f":"SUM(A97/1000)","v":0},null,null,{"$f":"SUM(D97/2)","v":0}]
[]
["19 LEAVES VACUUMED"]
["POUNDS","CY",null,"CY","TONS"]
[null,{"$f":"SUM(A101/700)","v":0},null,null,{"$f":"SUM(D101/2.86)","v":0}]
[]
["19 LEAVES LOOSE"]
["POUNDS","CY",null,"CY","TONS"]
[null,{"$f":"SUM(A105/400)","v":0},null,null,{"$f":"SUM(D105/5)","v":0}]
[]
["20 STUMPS"]
["POUNDS","CY",null,"CY","TONS"]
[null,{"$f":"SUM(A109/500)","v":0},null,null,{"$f":"SUM(D109/4)","v":0}]
[]
["21 Consumer Electronics - Central Processing Unit"]
["POUNDS","# of units",null,"# of units","TONS"]
[null,{"$f":"SUM(A113/26)","v":0},null,null,{"$f":"SUM(D113/76.92)","v":0}]
[]
["21Consumer Electronics - Monitors"]
["POUNDS","# of units",null,"# of units","TONS"]
[null,{"$f":"SUM(A117/30)","v":0},null,null,{"$f":"SUM(D117/66.67)","v":0}]
[]
["21Consumer Electronics - Printers"]
["POUNDS","# of units",null,"# of units","TONS"]
[null,{"$f":"SUM(A121/25.33)","v":0},null,null,{"$f":"SUM(D121/78.96)","v":0}]
[]
["21Consumer Electronics - Ink Cartridges"]
["POUNDS","# of units",null,"# of units","TONS"]
[null,{"$f":"SUM(A125/2.5)","v":0},null,null,{"$f":"SUM(D125/800)","v":0}]
[]
["22 CONCRETE"]
["POUNDS","CY",null,"CY","TONS"]
[null,{"$f":"SUM(A129/4000)","v":0},null,0,{"$f":"SUM(D129/0.5)","v":0}]
[]
["22 ASPHALT"]
["POUNDS","CY",null,"CY","TONS"]
[null,{"$f":"SUM(A133/4140)","v":0},null,null,{"$f":"SUM(D133*2.071)","v":0}]
[]
["23 FOOD WASTE"]
["POUNDS","55 GAL DRUM",null,"55 GAL DRUM","TONS"]
[null,{"$f":"SUM(A137/412.5)","v":0},null,null,{"$f":"SUM(D137/4.85)","v":0}]
[]
["23 FOOD WASTE (Cooking Oil)"]
["POUNDS","1 GAL",null,"1 GAL","TONS"]
[null,{"$f":"SUM(A141/8)","v":0},null,null,{"$f":"SUM(D141/250)","v":0}]
[]
["24 Fluorescent Lights"]
["POUNDS","# of 4 ft bulbs",null,"# of 4 ft bulbs","TONS"]
[null,{"$f":"SUM(A145/0.625)","v":0},null,null,{"$f":"SUM(D145/3200)","v":0}]
[]
["29 CARPET"]
["POUNDS","Sq YRD",null,"Sq YRD","TONS"]
[null,{"$f":"SUM(A149/4.5)","v":0},null,null,{"$f":"SUM(D149/444.44)","v":0}]
[]
[]
["30 WOOD SCRAP (pallets)"]
["POUNDS","CY",null,"CY","TONS"]
[null,{"$f":"SUM(A154/285.71)","v":0},null,null,{"$f":"SUM(D154/7)","v":0}]
[]
["30 WOOD SCRAP other"]
["POUNDS","CY",null,"CY","TONS"]
[null,{"$f":"SUM(A158/363.64)","v":0},null,null,{"$f":"SUM(D158/5.5)","v":0}]

{"sheet":"Single Stream","index":3,"n_rows":61,"n_cols":5,"rows_kept":61,"cut":false,"hidden":false,"merged":[[0,0,1,0],[4,0,6,0],[28,0,28,4],[8,0,10,0],[12,0,12,4],[13,0,13,4],[14,0,14,1],[14,3,14,4],[18,0,18,4],[19,0,19,1],[19,3,19,4],[23,0,23,4],[24,0,24,1],[24,3,24,4],[48,0,48,4],[29,0,29,1],[29,3,29,4],[33,0,33,4],[34,0,34,1],[34,3,34,4],[38,0,38,4],[39,0,39,1],[39,3,39,4],[43,0,43,4],[44,0,44,1],[44,3,44,4],[60,0,60,3],[49,0,49,1],[49,3,49,4],[53,0,53,4],[54,0,54,1],[54,3,54,4],[59,0,59,3]]}
["enter single stream tonnage in the cell below","PAPER","CONTAINERS","fines & residue (not recycled - do not report)"]
[null,0.65,0.2,0.15]
[0,{"$f":"SUM(A3*0.65)","v":0},{"$f":"SUM(A3*0.2)","v":0},{"$f":"SUM(A3*0.15)","v":0}]
[]
["PAPER","01 - Corrugated","02 - Office","03 - News","04 - Other Paper"]
[null,0.21,0.16,0.09,0.18]
[null,{"$f":"SUM(A3*0.21)","v":0},{"$f":"SUM(A3*0.16)","v":0},{"$f":"SUM(A3*0.09)","v":0},{"$f":"SUM(A3*0.18)","v":0}]
[]
["CONTAINERS","05 - GLASS","06 - ALUMINUM","07 - STEEL","08 - PLASTIC"]
[null,7.0000000000000007E-2,0.03,0.03,0.08]
[null,{"$f":"SUM(A3*0.07)","v":0},{"$f":"SUM(A3*0.03)","v":0},{"$f":"SUM(A3*0.03)","v":0},{"$f":"SUM(A3*0.08)","v":0}]
[]
["AUTO CONVERSION TO TONS (if you enter cubic yards above your tonnage is listed here automatically:"]
["01 CORRUGATED"]
["UNCOMPACTED",null,null,"COMPACTED"]
["CUBIC YARDS","TONS",null,"CUBIC YARDS","TONS"]
[{"$f":"SUM(B7)","v":0},{"$f":"SUM(A17/50)","v":0},null,{"$f":"SUM(B7)","v":0},{"$f":"SUM(D17/4)","v":0}]
[]
["02 MIXED OFFICE PAPER"]
["UNCOMPACTED",null,null,"COMPACTED"]
["CUBIC YARDS","TONS",null,"CUBIC YARDS","TONS"]
[{"$f":"SUM(C7)","v":0},{"$f":"SUM(A22/5)","v":0},null,{"$f":"SUM(C7)","v":0},{"$f":"SUM(D22/2.65)","v":0}]
[]
["03 NEWSPAPER"]
["UNCOMPACTED",null,null,"COMPACTED"]
["CUBIC YARDS","TONS",null,"CUBIC YARDS","TONS"]
[{"$f":"SUM(D7)","v":0},{"$f":"SUM(A27/4)","v":0},null,{"$f":"SUM(D7)","v":0},{"$f":"SUM(D27/2.31)","v":0}]
[]
["04 OTHER PAPER, MAGAZINES & JUNK MAIL"]
["UNCOMPACTED",null,null,"COMPACTED"]
["CUBIC YARDS","TONS",null,"CUBIC YARDS","TONS"]
[{"$f":"SUM(E7)","v":0},{"$f":"SUM(A32/4)","v":0},null,{"$f":"SUM(E7)","v":0},{"$f":"SUM(D32/2.31)","v":0}]
[]
["05 GLASS CONTAINERS (loose)"]
["UNCOMPACTED",null,null,"COMPACTED"]
["CUBIC YARDS","TONS",null,"CUBIC YARDS","TONS"]
[{"$f":"SUM(B11)","v":0},{"$f":"SUM(A37/3.33)","v":0},null,{"$f":"SUM(B11)","v":0},{"$f":"SUM(D37/1.33)","v":0}]
[]
["06 ALUMINUM CONTAINERS"]
["UNCOMPACTED",null,null,"COMPACTED"]
["CUBIC YARDS","TONS",null,"CUBIC YARDS","TONS"]
[{"$f":"SUM(C11)","v":0},{"$f":"SUM(A42/27.02)","v":0},null,{"$f":"SUM(C11)","v":0},{"$f":"SUM(D42/8)","v":0}]
[]
["07 STEEL CONTAINERS"]
["UNCOMPACTED",null,null,"COMPACTED"]
["CUBIC YARDS","TONS",null,"CUBIC YARDS","TONS"]
[{"$f":"SUM(D11)","v":0},{"$f":"SUM(A47/13.33)","v":0},null,{"$f":"SUM(D11)","v":0},{"$f":"SUM(D47/5.71)","v":0}]
[]
["08 PLASTIC CONTAINERS (pete)"]
["UNCOMPACTED",null,null,"COMPACTED"]
["CUBIC YARDS","TONS",null,"CUBIC YARDS","TONS"]
[{"$f":"SUM(E11)/2","v":0},{"$f":"SUM(A52/66.66)","v":0},null,{"$f":"SUM(E11)/2","v":0},{"$f":"SUM(D52/3.88)","v":0}]
[]
["08 PLASTIC CONTAINERS (hdpe)"]
["UNCOMPACTED",null,null,"COMPACTED"]
["CUBIC YARDS","TONS",null,"CUBIC YARDS","TONS"]
[{"$f":"SUM(E11)/2","v":0},{"$f":"SUM(A57/80)","v":0},null,{"$f":"SUM(E11)/2","v":0},{"$f":"SUM(D57/7.41)","v":0}]
[]
[]
["TOTAL COMPACTED CUBIC YARDS TO TONS =",null,null,null,{"$f":"SUM(E57,E52,E47,E42,E37,E32,E27,E22,E17)","v":0}]
["TOTAL UNCOMPACTED CUBIC YARDS TO TONS =",null,null,null,{"$f":"SUM(B57,B52,B47,B42,B37,B32,B27,B22,B17)","v":0}]

{"sheet":"Paper Sort Tool","index":4,"n_rows":28,"n_cols":5,"rows_kept":28,"cut":false,"hidden":false,"merged":[[0,0,1,0],[4,0,6,0],[8,0,8,4],[9,0,9,4],[10,0,10,1],[10,3,10,4],[24,0,24,4],[25,0,25,1],[25,3,25,4],[14,0,14,4],[15,0,15,1],[15,3,15,4],[19,0,19,4],[20,0,20,1],[20,3,20,4]]}
["enter paper tonnage in the cell below","PAPER",null,"fines & residue (not recycled - do not report)"]
[null,1,null,0.08]
[null,{"$f":"SUM(A3*0.92)","v":0},null,{"$f":"SUM(A3*0.08)","v":0}]
[]
["PAPER","01 - Corrugated","02 - Office","03 - News","04 - Other Paper"]
[null,0.57999999999999996,0.16,0.08,0.18]
[null,{"$f":"SUM(B3*0.58)","v":0},{"$f":"SUM(B3*0.16)","v":0},{"$f":"SUM(B3*0.08)","v":0},{"$f":"SUM(B3*0.18)","v":0}]
[]
["AUTO CONVERSION TO TONS (if you enter cubic yards above your tonnage is listed here automatically:"]
["01 CORRUGATED"]
["UNCOMPACTED",null,null,"COMPACTED"]
["CUBIC YARDS","TONS",null,"CUBIC YARDS","TONS"]
[{"$f":"SUM(B7)","v":0},{"$f":"SUM(A13/50)","v":0},null,{"$f":"SUM(B7)","v":0},{"$f":"SUM(D13/4)","v":0}]
[]
["02 MIXED OFFICE PAPER"]
["UNCOMPACTED",null,null,"COMPACTED"]
["CUBIC YARDS","TONS",null,"CUBIC YARDS","TONS"]
[{"$f":"SUM(C7)","v":0},{"$f":"SUM(A18/5)","v":0},null,{"$f":"SUM(C7)","v":0},{"$f":"SUM(D18/2.65)","v":0}]
[]
["03 NEWSPAPER"]
["UNCOMPACTED",null,null,"COMPACTED"]
["CUBIC YARDS","TONS",null,"CUBIC YARDS","TONS"]
[{"$f":"SUM(D7)","v":0},{"$f":"SUM(A23/4)","v":0},null,{"$f":"SUM(D7)","v":0},{"$f":"SUM(D23/2.31)","v":0}]
[]
["04 OTHER PAPER, MAGAZINES & JUNK MAIL"]
["UNCOMPACTED",null,null,"COMPACTED"]
["CUBIC YARDS","TONS",null,"CUBIC YARDS","TONS"]
[{"$f":"SUM(E7)","v":0},{"$f":"SUM(A28/4)","v":0},null,{"$f":"SUM(E7)","v":0},{"$f":"SUM(D28/2.31)","v":0}]

{"sheet":"Commingled","index":5,"n_rows":3,"n_cols":6,"rows_kept":3,"cut":false,"hidden":false,"merged":[[0,0,1,0]]}
["enter co-mingled figure in the cell below","05 - GLASS","06 - ALUMINUM","07 - STEEL","08 - PLASTIC","fines & residue (not recycled - do not report)"]
[null,0.7,0.08,0.08,0.1,0.04]
[null,{"$f":"SUM(A3*0.7)","v":0},{"$f":"SUM(A3*0.08)","v":0},{"$f":"SUM(A3*0.08)","v":0},{"$f":"SUM(A3*0.1)","v":0},{"$f":"SUM(A3*0.04)","v":0}]

{"sheet":"Measure A Mound","index":6,"n_rows":6,"n_cols":7,"rows_kept":6,"cut":false,"hidden":false,"merged":[[5,6,5,8],[0,0,0,8],[1,0,1,8],[2,6,2,8],[3,6,3,8],[4,6,4,8]]}
["How to measure a mound"]
["LxWxH = cu ft : cu ft / 27 = cu yds X .66 adjust for slope = cu yds of a pile"]
["enter length below","enter width below","enter height below",null,null,"adjusted for slope","using the conversion sort tool enter the cubic yard figure"]
["ft","ft","ft","cu ft","cu yds","cu yds","in the appropriate cell for your specific material"]
[null,null,null,{"$f":"SUM(A5*B5*C5)","v":0},{"$f":"SUM(D5/27)","v":0},{"$f":"SUM(E5*0.66)","v":0},"cubic yards"]
["enter length above","enter width above","enter height above",null,null,null,{"$f":"SUM(F5)","v":0}]

{"sheet":"CoMun","index":7,"n_rows":565,"n_cols":12,"rows_kept":565,"cut":false,"hidden":true,"merged":[]}
["County","Municipality",null,"Only County",null,"County_Muncipality_Check",null,"Sectors",null,"Years",null,"States"]
["Atlantic (01)","Absecon (01)",null,"Atlantic (01)",null,{"$f":"CONCATENATE(A2, \"_\", B2)","v":"Atlantic (01)_Absecon (01)"},null,null,null,2016,null,"AL"]
["Atlantic (01)","Atlantic City (02)",null,"Bergen (02)",null,{"$f":"CONCATENATE(A3, \"_\", B3)","v":"Atlantic (01)_Atlantic City (02)"},null,"Commercial",null,2017,null,"AK"]
["Atlantic (01)","Brigantine (03)",null,"Burlington (03)",null,"Atlantic (01)_Brigantine (03)",null,"Residential",null,2018,null,"AZ"]
["Atlantic (01)","Buena (04)",null,"Camden (04)",null,"Atlantic (01)_Buena (04)",null,"Industrial (Factory)",null,2019,null,"AR"]
["Atlantic (01)","Buena Vista (05)",null,"Cape May (05)",null,"Atlantic (01)_Buena Vista (05)",null,"Institutional",null,2020,null,"CA"]
["Atlantic (01)","Corbin City (06)",null,"Cumberland (06)",null,"Atlantic (01)_Corbin City (06)",null,null,null,2021,null,"CO"]
["Atlantic (01)","Egg Harbor City (07)",null,"Essex (07)",null,"Atlantic (01)_Egg Harbor City (07)",null,null,null,2022,null,"CT"]
["Atlantic (01)","Egg Harbor Twp (08)",null,"Gloucester (08)",null,"Atlantic (01)_Egg Harbor Twp (08)",null,null,null,2023,null,"DE"]
["Atlantic (01)","Estell Manor (09)",null,"Hudson (09)",null,"Atlantic (01)_Estell Manor (09)",null,null,null,2024,null,"FL"]
["Atlantic (01)","Folsom (10)",null,"Hunterdon (10)",null,"Atlantic (01)_Folsom (10)",null,null,null,2025,null,"GA"]
["Atlantic (01)","Galloway (11)",null,"Mercer (11)",null,"Atlantic (01)_Galloway (11)",null,null,null,null,null,"HI"]
["Atlantic (01)","Hamilton (12)",null,"Middlesex (12)",null,"Atlantic (01)_Hamilton (12)",null,null,null,null,null,"ID"]
["Atlantic (01)","Hammonton (13)",null,"Monmouth (13)",null,"Atlantic (01)_Hammonton (13)",null,null,null,null,null,"IL"]
["Atlantic (01)","Linwood (14)",null,"Morris (14)",null,"Atlantic (01)_Linwood (14)",null,null,null,null,null,"IN"]
["Atlantic (01)","Longport (15)",null,"Ocean (15)",null,"Atlantic (01)_Longport (15)",null,null,null,null,null,"IA"]
["Atlantic (01)","Margate (16)",null,"Passaic (16)",null,"Atlantic (01)_Margate (16)",null,null,null,null,null,"KS"]
["Atlantic (01)","Mullica (17)",null,"Salem (17)",null,"Atlantic (01)_Mullica (17)",null,null,null,null,null,"KY"]
["Atlantic (01)","Northfield (18)",null,"Somerset (18)",null,"Atlantic (01)_Northfield (18)",null,null,null,null,null,"LA"]
["Atlantic (01)","Pleasantville (19)",null,"Sussex (19)",null,"Atlantic (01)_Pleasantville (19)",null,null,null,null,null,"ME"]
["Atlantic (01)","Port Republic (20)",null,"Union (20)",null,"Atlantic (01)_Port Republic (20)",null,null,null,null,null,"MD"]
["Atlantic (01)","Somers Point (21)",null,"Warren (21)",null,"Atlantic (01)_Somers Point (21)",null,null,null,null,null,"MA"]
["Atlantic (01)","Ventnor (22)",null,null,null,"Atlantic (01)_Ventnor (22)",null,null,null,null,null,"MI"]
["Atlantic (01)","Weymouth (23)",null,null,null,"Atlantic (01)_Weymouth (23)",null,null,null,null,null,"MN"]
["Bergen (02)","Allendale (01)",null,null,null,"Bergen (02)_Allendale (01)",null,null,null,null,null,"MS"]
["Bergen (02)","Alpine (02)",null,null,null,"Bergen (02)_Alpine (02)",null,null,null,null,null,"MO"]
["Bergen (02)","Bergenfield (03)",null,null,null,"Bergen (02)_Bergenfield (03)",null,null,null,null,null,"MT"]
["Bergen (02)","Bogota (04)",null,null,null,"Bergen (02)_Bogota (04)",null,null,null,null,null,"NE"]
["Bergen (02)","Carlstadt (05)",null,null,null,"Bergen (02)_Carlstadt (05)",null,null,null,null,null,"NV"]
["Bergen (02)","Cliffside Park (06)",null,null,null,"Bergen (02)_Cliffside Park (06)",null,null,null,null,null,"NH"]
["Bergen (02)","Closter (07)",null,null,null,"Bergen (02)_Closter (07)",null,null,null,null,null,"NJ"]
["Bergen (02)","Cresskill (08)",null,null,null,"Bergen (02)_Cresskill (08)",null,null,null,null,null,"NM"]
["Bergen (02)","Demarest (09)",null,null,null,"Bergen (02)_Demarest (09)",null,null,null,null,null,"NY"]
["Bergen (02)","Dumont (10)",null,null,null,"Bergen (02)_Dumont (10)",null,null,null,null,null,"NC"]
["Bergen (02)","East Rutherford (11)",null,null,null,"Bergen (02)_East Rutherford (11)",null,null,null,null,null,"ND"]
["Bergen (02)","Edgewater (12)",null,null,null,"Bergen (02)_Edgewater (12)",null,null,null,null,null,"OH"]
["Bergen (02)","Elmwood Park (13)",null,null,null,"Bergen (02)_Elmwood Park (13)",null,null,null,null,null,"OK"]
["Bergen (02)","Emerson (14)",null,null,null,"Bergen (02)_Emerson (14)",null,null,null,null,null,"OR"]
["Bergen (02)","Englewood (15)",null,null,null,"Bergen (02)_Englewood (15)",null,null,null,null,null,"PA"]
["Bergen (02)","Englewood Cliffs (16)",null,null,null,"Bergen (02)_Englewood Cliffs (16)",null,null,null,null,null,"RI"]
["Bergen (02)","Fair Lawn (17)",null,null,null,"Bergen (02)_Fair Lawn (17)",null,null,null,null,null,"SC"]
["Bergen (02)","Fairview (18)",null,null,null,"Bergen (02)_Fairview (18)",null,null,null,null,null,"SD"]
["Bergen (02)","Fort Lee (19)",null,null,null,"Bergen (02)_Fort Lee (19)",null,null,null,null,null,"TN"]
["Bergen (02)","Franklin Lakes (20)",null,null,null,"Bergen (02)_Franklin Lakes (20)",null,null,null,null,null,"TX"]
["Bergen (02)","Garfield (21)",null,null,null,"Bergen (02)_Garfield (21)",null,null,null,null,null,"UT"]
["Bergen (02)","Glen Rock (22)",null,null,null,"Bergen (02)_Glen Rock (22)",null,null,null,null,null,"VT"]
["Bergen (02)","Hackensack (23)",null,null,null,"Bergen (02)_Hackensack (23)",null,null,null,null,null,"VA"]
["Bergen (02)","Harrington Park (24)",null,null,null,"Bergen (02)_Harrington Park (24)",null,null,null,null,null,"WA"]
["Bergen (02)","Hasbrouck Heights (25)",null,null,null,"Bergen (02)_Hasbrouck Heights (25)",null,null,null,null,null,"WV"]
["Bergen (02)","Haworth (26)",null,null,null,"Bergen (02)_Haworth (26)",null,null,null,null,null,"WI"]
["Bergen (02)","Hillsdale (27)",null,null,null,"Bergen (02)_Hillsdale (27)",null,null,null,null,null,"WY"]
["Bergen (02)","Ho-ho-kus (28)",null,null,null,"Bergen (02)_Ho-ho-kus (28)",null,null,null,null,null,"International"]
["Bergen (02)","Leonia (29)",null,null,null,"Bergen (02)_Leonia (29)"]
["Bergen (02)","Little Ferry (30)",null,null,null,"Bergen (02)_Little Ferry (30)"]
["Bergen (02)","Lodi (31)",null,null,null,"Bergen (02)_Lodi (31)"]
["Bergen (02)","Lyndhurst (32)",null,null,null,"Bergen (02)_Lyndhurst (32)"]
["Bergen (02)","Mahwah (33)",null,null,null,"Bergen (02)_Mahwah (33)"]
["Bergen (02)","Maywood (34)",null,null,null,"Bergen (02)_Maywood (34)"]
["Bergen (02)","Midland Park (35)",null,null,null,"Bergen (02)_Midland Park (35)"]
["Bergen (02)","Montvale (36)",null,null,null,"Bergen (02)_Montvale (36)"]
["Bergen (02)","Moonachie (37)",null,null,null,"Bergen (02)_Moonachie (37)"]
["Bergen (02)","New Milford (38)",null,null,null,"Bergen (02)_New Milford (38)"]
["Bergen (02)","North Arlington (39)",null,null,null,"Bergen (02)_North Arlington (39)"]
["Bergen (02)","Northvale (40)",null,null,null,"Bergen (02)_Northvale (40)"]
["Bergen (02)","Norwood (41)",null,null,null,"Bergen (02)_Norwood (41)"]
["Bergen (02)","Oakland (42)",null,null,null,"Bergen (02)_Oakland (42)"]
["Bergen (02)","Old Tappan (43)",null,null,null,{"$f":"CONCATENATE(A67, \"_\", B67)","v":"Bergen (02)_Old Tappan (43)"}]
["Bergen (02)","Oradell (44)",null,null,null,"Bergen (02)_Oradell (44)"]
["Bergen (02)","Palisades Park (45)",null,null,null,"Bergen (02)_Palisades Park (45)"]
["Bergen (02)","Paramus (46)",null,null,null,"Bergen (02)_Paramus (46)"]
["Bergen (02)","Park Ridge (47)",null,null,null,"Bergen (02)_Park Ridge (47)"]
["Bergen (02)","Ramsey (48)",null,null,null,"Bergen (02)_Ramsey (48)"]
["Bergen (02)","Ridgefield (49)",null,null,null,"Bergen (02)_Ridgefield (49)"]
["Bergen (02)","Ridgefield Park (50)",null,null,null,"Bergen (02)_Ridgefield Park (50)"]
["Bergen (02)","Ridgewood (51)",null,null,null,"Bergen (02)_Ridgewood (51)"]
["Bergen (02)","River Edge (52)",null,null,null,"Bergen (02)_River Edge (52)"]
["Bergen (02)","River Vale (53)",null,null,null,"Bergen (02)_River Vale (53)"]
["Bergen (02)","Rochelle Park (54)",null,null,null,"Bergen (02)_Rochelle Park (54)"]
["Bergen (02)","Rockleigh (55)",null,null,null,"Bergen (02)_Rockleigh (55)"]
["Bergen (02)","Rutherford (56)",null,null,null,"Bergen (02)_Rutherford (56)"]
["Bergen (02)","Saddle Brook (57)",null,null,null,"Bergen (02)_Saddle Brook (57)"]
["Bergen (02)","Saddle River (58)",null,null,null,"Bergen (02)_Saddle River (58)"]
["Bergen (02)","South Hackensack (59)",null,null,null,"Bergen (02)_South Hackensack (59)"]
["Bergen (02)","Teaneck (60)",null,null,null,"Bergen (02)_Teaneck (60)"]
["Bergen (02)","Tenafly (61)",null,null,null,"Bergen (02)_Tenafly (61)"]
["Bergen (02)","Teterboro (62)",null,null,null,"Bergen (02)_Teterboro (62)"]
["Bergen (02)","Upper Saddle River (63)",null,null,null,"Bergen (02)_Upper Saddle River (63)"]
["Bergen (02)","Waldwick (64)",null,null,null,"Bergen (02)_Waldwick (64)"]
["Bergen (02)","Wallington (65)",null,null,null,"Bergen (02)_Wallington (65)"]
["Bergen (02)","Washington (66)",null,null,null,"Bergen (02)_Washington (66)"]
["Bergen (02)","Westwood (67)",null,null,null,"Bergen (02)_Westwood (67)"]
["Bergen (02)","Woodcliff Lake (68)",null,null,null,"Bergen (02)_Woodcliff Lake (68)"]
["Bergen (02)","Wood Ridge (69)",null,null,null,"Bergen (02)_Wood Ridge (69)"]
["Bergen (02)","Wyckoff (70)",null,null,null,"Bergen (02)_Wyckoff (70)"]
["Burlington (03)","Bass River (01)",null,null,null,"Burlington (03)_Bass River (01)"]
["Burlington (03)","Beverly (02)",null,null,null,"Burlington (03)_Beverly (02)"]
["Burlington (03)","Bordentown City (03)",null,null,null,"Burlington (03)_Bordentown City (03)"]
["Burlington (03)","Bordentown Twp (04)",null,null,null,"Burlington (03)_Bordentown Twp (04)"]
["Burlington (03)","Burlington City (05)",null,null,null,"Burlington (03)_Burlington City (05)"]
["Burlington (03)","Burlington Twp (06)",null,null,null,"Burlington (03)_Burlington Twp (06)"]
["Burlington (03)","Chesterfield (07)",null,null,null,"Burlington (03)_Chesterfield (07)"]
["Burlington (03)","Cinnaminson (08)",null,null,null,"Burlington (03)_Cinnaminson (08)"]
["Burlington (03)","Delanco (09)",null,null,null,"Burlington (03)_Delanco (09)"]
["Burlington (03)","Delran (10)",null,null,null,"Burlington (03)_Delran (10)"]
["Burlington (03)","Eastampton (11)",null,null,null,"Burlington (03)_Eastampton (11)"]
["Burlington (03)","Edgewater Park (12)",null,null,null,"Burlington (03)_Edgewater Park (12)"]
["Burlington (03)","Evesham (13)",null,null,null,"Burlington (03)_Evesham (13)"]
["Burlington (03)","Fieldsboro (14)",null,null,null,"Burlington (03)_Fieldsboro (14)"]
["Burlington (03)","Florence (15)",null,null,null,"Burlington (03)_Florence (15)"]
["Burlington (03)","Hainesport (16)",null,null,null,"Burlington (03)_Hainesport (16)"]
["Burlington (03)","Lumberton (17)",null,null,null,"Burlington (03)_Lumberton (17)"]
["Burlington (03)","Mansfield (18)",null,null,null,"Burlington (03)_Mansfield (18)"]
["Burlington (03)","Maple Shade (19)",null,null,null,"Burlington (03)_Maple Shade (19)"]
["Burlington (03)","Medford (20)",null,null,null,"Burlington (03)_Medford (20)"]
["Burlington (03)","Medford Lakes (21)",null,null,null,"Burlington (03)_Medford Lakes (21)"]
["Burlington (03)","Moorestown (22)",null,null,null,"Burlington (03)_Moorestown (22)"]
["Burlington (03)","Mt Holly (23)",null,null,null,"Burlington (03)_Mt Holly (23)"]
["Burlington (03)","Mount Laurel (24)",null,null,null,"Burlington (03)_Mount Laurel (24)"]
["Burlington (03)","New Hanover (25)",null,null,null,"Burlington (03)_New Hanover (25)"]
["Burlington (03)","North Hanover (26)",null,null,null,"Burlington (03)_North Hanover (26)"]
["Burlington (03)","Palmyra (27)",null,null,null,"Burlington (03)_Palmyra (27)"]
["Burlington (03)","Pemberton Boro (28)",null,null,null,"Burlington (03)_Pemberton Boro (28)"]
["Burlington (03)","Pemberton Twp (29)",null,null,null,"Burlington (03)_Pemberton Twp (29)"]
["Burlington (03)","Riverside (30)",null,null,null,"Burlington (03)_Riverside (30)"]
["Burlington (03)","Riverton (31)",null,null,null,"Burlington (03)_Riverton (31)"]
["Burlington (03)","Shamong (32)",null,null,null,"Burlington (03)_Shamong (32)"]
["Burlington (03)","Southampton (33)",null,null,null,"Burlington (03)_Southampton (33)"]
["Burlington (03)","Springfield (34)",null,null,null,"Burlington (03)_Springfield (34)"]
["Burlington (03)","Tabernacle (35)",null,null,null,"Burlington (03)_Tabernacle (35)"]
["Burlington (03)","Washington (36)",null,null,null,"Burlington (03)_Washington (36)"]
["Burlington (03)","Westampton (37)",null,null,null,{"$f":"CONCATENATE(A131, \"_\", B131)","v":"Burlington (03)_Westampton (37)"}]
["Burlington (03)","Willingboro (38)",null,null,null,"Burlington (03)_Willingboro (38)"]
["Burlington (03)","Woodland (39)",null,null,null,"Burlington (03)_Woodland (39)"]
["Burlington (03)","Wrightstown (40)",null,null,null,"Burlington (03)_Wrightstown (40)"]
["Camden (04)","Audubon (01)",null,null,null,"Camden (04)_Audubon (01)"]
["Camden (04)","Audubon Park (02)",null,null,null,"Camden (04)_Audubon Park (02)"]
["Camden (04)","Barrington (03)",null,null,null,"Camden (04)_Barrington (03)"]
["Camden (04)","Bellmawr (04)",null,null,null,"Camden (04)_Bellmawr (04)"]
["Camden (04)","Berlin Boro (05)",null,null,null,"Camden (04)_Berlin Boro (05)"]
["Camden (04)","Berlin Twp (06)",null,null,null,"Camden (04)_Berlin Twp (06)"]
["Camden (04)","Brooklawn (07)",null,null,null,"Camden (04)_Brooklawn (07)"]
["Camden (04)","Camden (08)",null,null,null,"Camden (04)_Camden (08)"]
["Camden (04)","Cherry Hill (09)",null,null,null,"Camden (04)_Cherry Hill (09)"]
["Camden (04)","Chesilhurst (10)",null,null,null,"Camden (04)_Chesilhurst (10)"]
["Camden (04)","Clementon (11)",null,null,null,"Camden (04)_Clementon (11)"]
["Camden (04)","Collingswood (12)",null,null,null,"Camden (04)_Collingswood (12)"]
["Camden (04)","Gibbsboro (13)",null,null,null,"Camden (04)_Gibbsboro (13)"]
["Camden (04)","Gloucester City (14)",null,null,null,"Camden (04)_Gloucester City (14)"]
["Camden (04)","Gloucester Twp (15)",null,null,null,"Camden (04)_Gloucester Twp (15)"]
["Camden (04)","Haddon (16)",null,null,null,"Camden (04)_Haddon (16)"]
["Camden (04)","Haddonfield (17)",null,null,null,"Camden (04)_Haddonfield (17)"]
["Camden (04)","Haddon Heights (18)",null,null,null,"Camden (04)_Haddon Heights (18)"]
["Camden (04)","Hi-Nella (19)",null,null,null,"Camden (04)_Hi-Nella (19)"]
["Camden (04)","Laurel Springs (20)",null,null,null,"Camden (04)_Laurel Springs (20)"]
["Camden (04)","Lawnside (21)",null,null,null,"Camden (04)_Lawnside (21)"]
["Camden (04)","Lindenwold (22)",null,null,null,"Camden (04)_Lindenwold (22)"]
["Camden (04)","Magnolia (23)",null,null,null,"Camden (04)_Magnolia (23)"]
["Camden (04)","Merchantville (24)",null,null,null,"Camden (04)_Merchantville (24)"]
["Camden (04)","Mount Ephraim (25)",null,null,null,"Camden (04)_Mount Ephraim (25)"]
["Camden (04)","Oaklyn (26)",null,null,null,"Camden (04)_Oaklyn (26)"]
["Camden (04)","Pennsauken (27)",null,null,null,"Camden (04)_Pennsauken (27)"]
["Camden (04)","Pine Hill (28)",null,null,null,"Camden (04)_Pine Hill (28)"]
["Camden (04)","Pine Valley (29)",null,null,null,"Camden (04)_Pine Valley (29)"]
["Camden (04)","Runnemede (30)",null,null,null,"Camden (04)_Runnemede (30)"]
["Camden (04)","Somerdale (31)",null,null,null,"Camden (04)_Somerdale (31)"]
["Camden (04)","Stratford (32)",null,null,null,"Camden (04)_Stratford (32)"]
["Camden (04)","Tavistock (33)",null,null,null,"Camden (04)_Tavistock (33)"]
["Camden (04)","Voorhees (34)",null,null,null,"Camden (04)_Voorhees (34)"]
["Camden (04)","Waterford (35)",null,null,null,"Camden (04)_Waterford (35)"]
["Camden (04)","Winslow (36)",null,null,null,"Camden (04)_Winslow (36)"]
["Camden (04)","Woodlynne (37)",null,null,null,"Camden (04)_Woodlynne (37)"]
["Cape May (05)","Avalon (01)",null,null,null,"Cape May (05)_Avalon (01)"]
["Cape May (05)","Cape May (02)",null,null,null,"Cape May (05)_Cape May (02)"]
["Cape May (05)","Cape May Point (03)",null,null,null,"Cape May (05)_Cape May Point (03)"]
["Cape May (05)","Dennis (04)",null,null,null,"Cape May (05)_Dennis (04)"]
["Cape May (05)","Lower (05)",null,null,null,"Cape May (05)_Lower (05)"]
["Cape May (05)","Middle (06)",null,null,null,"Cape May (05)_Middle (06)"]
["Cape May (05)","North Wildwood (07)",null,null,null,"Cape May (05)_North Wildwood (07)"]
["Cape May (05)","Ocean City (08)",null,null,null,"Cape May (05)_Ocean City (08)"]
["Cape May (05)","Sea Isle City (09)",null,null,null,"Cape May (05)_Sea Isle City (09)"]
["Cape May (05)","Stone Harbor (10)",null,null,null,"Cape May (05)_Stone Harbor (10)"]
["Cape May (05)","Upper (11)",null,null,null,"Cape May (05)_Upper (11)"]
["Cape May (05)","West Cape May (12)",null,null,null,"Cape May (05)_West Cape May (12)"]
["Cape May (05)","West Wildwood (13)",null,null,null,"Cape May (05)_West Wildwood (13)"]
["Cape May (05)","Wildwood (14)",null,null,null,"Cape May (05)_Wildwood (14)"]
["Cape May (05)","Wildwood Crest (15)",null,null,null,"Cape May (05)_Wildwood Crest (15)"]
["Cape May (05)","Woodbine (16)",null,null,null,"Cape May (05)_Woodbine (16)"]
["Cumberland (06)","Bridgeton (01)",null,null,null,"Cumberland (06)_Bridgeton (01)"]
["Cumberland (06)","Commercial (02)",null,null,null,"Cumberland (06)_Commercial (02)"]
["Cumberland (06)","Deerfield (03)",null,null,null,"Cumberland (06)_Deerfield (03)"]
["Cumberland (06)","Downe (04)",null,null,null,"Cumberland (06)_Downe (04)"]
["Cumberland (06)","Fairfield (05)",null,null,null,"Cumberland (06)_Fairfield (05)"]
["Cumberland (06)","Greenwich (06)",null,null,null,"Cumberland (06)_Greenwich (06)"]
["Cumberland (06)","Hopewell (07)",null,null,null,"Cumberland (06)_Hopewell (07)"]
["Cumberland (06)","Lawrence (08)",null,null,null,{"$f":"CONCATENATE(A195, \"_\", B195)","v":"Cumberland (06)_Lawrence (08)"}]
["Cumberland (06)","Maurice River (09)",null,null,null,"Cumberland (06)_Maurice River (09)"]
["Cumberland (06)","Millville (10)",null,null,null,"Cumberland (06)_Millville (10)"]
["Cumberland (06)","Shiloh (11)",null,null,null,"Cumberland (06)_Shiloh (11)"]
["Cumberland (06)","Stow Creek (12)",null,null,null,"Cumberland (06)_Stow Creek (12)"]
["Cumberland (06)","Upper Deerfield (13)",null,null,null,"Cumberland (06)_Upper Deerfield (13)"]
["Cumberland (06)","Vineland (14)",null,null,null,"Cumberland (06)_Vineland (14)"]
["Essex (07)","Belleville (01)",null,null,null,"Essex (07)_Belleville (01)"]
["Essex (07)","Bloomfield (02)",null,null,null,"Essex (07)_Bloomfield (02)"]
["Essex (07)","Caldwell (03)",null,null,null,"Essex (07)_Caldwell (03)"]
["Essex (07)","Cedar Grove (04)",null,null,null,"Essex (07)_Cedar Grove (04)"]
["Essex (07)","East Orange  (05)",null,null,null,"Essex (07)_East Orange  (05)"]
["Essex (07)","Essex Fells (06)",null,null,null,"Essex (07)_Essex Fells (06)"]
["Essex (07)","Fairfield (07)",null,null,null,"Essex (07)_Fairfield (07)"]
["Essex (07)","Glen Ridge (08)",null,null,null,"Essex (07)_Glen Ridge (08)"]
["Essex (07)","Irvington (09)",null,null,null,"Essex (07)_Irvington (09)"]
["Essex (07)","Livingston (10)",null,null,null,"Essex (07)_Livingston (10)"]
["Essex (07)","Maplewood (11)",null,null,null,"Essex (07)_Maplewood (11)"]
["Essex (07)","Millburn (12)",null,null,null,"Essex (07)_Millburn (12)"]
["Essex (07)","Montclair (13)",null,null,null,"Essex (07)_Montclair (13)"]
["Essex (07)","Newark (14)",null,null,null,"Essex (07)_Newark (14)"]
["Essex (07)","North Caldwell (15)",null,null,null,"Essex (07)_North Caldwell (15)"]
["Essex (07)","Nutley (16)",null,null,null,"Essex (07)_Nutley (16)"]
["Essex (07)","Orange (17)",null,null,null,"Essex (07)_Orange (17)"]
["Essex (07)","Roseland  (18)",null,null,null,"Essex (07)_Roseland  (18)"]
["Essex (07)","South Orange (19)",null,null,null,"Essex (07)_South Orange (19)"]
["Essex (07)","Verona (20)",null,null,null,"Essex (07)_Verona (20)"]
["Essex (07)","West Caldwell (21)",null,null,null,"Essex (07)_West Caldwell (21)"]
["Essex (07)","West Orange (22)",null,null,null,"Essex (07)_West Orange (22)"]
["Gloucester (08)","Clayton (01)",null,null,null,"Gloucester (08)_Clayton (01)"]
["Gloucester (08)","Deptford (02)",null,null,null,"Gloucester (08)_Deptford (02)"]
["Gloucester (08)","East Greenwich (03)",null,null,null,"Gloucester (08)_East Greenwich (03)"]
["Gloucester (08)","Elk (04)",null,null,null,"Gloucester (08)_Elk (04)"]
["Gloucester (08)","Franklin (05)",null,null,null,"Gloucester (08)_Franklin (05)"]
["Gloucester (08)","Glassboro (06)",null,null,null,"Gloucester (08)_Glassboro (06)"]
["Gloucester (08)","Greenwich (07)",null,null,null,"Gloucester (08)_Greenwich (07)"]
["Gloucester (08)","Harrison (08)",null,null,null,"Gloucester (08)_Harrison (08)"]
["Gloucester (08)","Logan (09)",null,null,null,"Gloucester (08)_Logan (09)"]
["Gloucester (08)","Mantua (10)",null,null,null,"Gloucester (08)_Mantua (10)"]
["Gloucester (08)","Monroe (11)",null,null,null,"Gloucester (08)_Monroe (11)"]
["Gloucester (08)","National Park (12)",null,null,null,"Gloucester (08)_National Park (12)"]
["Gloucester (08)","Newfield (13)",null,null,null,"Gloucester (08)_Newfield (13)"]
["Gloucester (08)","Paulsboro (14)",null,null,null,"Gloucester (08)_Paulsboro (14)"]
["Gloucester (08)","Pitman (15)",null,null,null,"Gloucester (08)_Pitman (15)"]
["Gloucester (08)","South Harrison (16)",null,null,null,"Gloucester (08)_South Harrison (16)"]
["Gloucester (08)","Swedesboro (17)",null,null,null,"Gloucester (08)_Swedesboro (17)"]
["Gloucester (08)","Washington (18)",null,null,null,"Gloucester (08)_Washington (18)"]
["Gloucester (08)","Wenonah (19)",null,null,null,"Gloucester (08)_Wenonah (19)"]
["Gloucester (08)","West Deptford (20)",null,null,null,"Gloucester (08)_West Deptford (20)"]
["Gloucester (08)","Westville  (21)",null,null,null,"Gloucester (08)_Westville  (21)"]
["Gloucester (08)","Woodbury (22)",null,null,null,"Gloucester (08)_Woodbury (22)"]
["Gloucester (08)","Woodbury Heights (23)",null,null,null,"Gloucester (08)_Woodbury Heights (23)"]
["Gloucester (08)","Woolwich (24)",null,null,null,"Gloucester (08)_Woolwich (24)"]
["Hudson (09)","Bayonne (01)",null,null,null,"Hudson (09)_Bayonne (01)"]
["Hudson (09)","East Newark (02)",null,null,null,"Hudson (09)_East Newark (02)"]
["Hudson (09)","Guttenberg (03)",null,null,null,"Hudson (09)_Guttenberg (03)"]
["Hudson (09)","Harrison (04)",null,null,null,"Hudson (09)_Harrison (04)"]
["Hudson (09)","Hoboken (05)",null,null,null,"Hudson (09)_Hoboken (05)"]
["Hudson (09)","Jersey City (06)",null,null,null,"Hudson (09)_Jersey City (06)"]
["Hudson (09)","Kearny (07)",null,null,null,"Hudson (09)_Kearny (07)"]
["Hudson (09)","North Bergen (08)",null,null,null,"Hudson (09)_North Bergen (08)"]
["Hudson (09)","Secaucus (09)",null,null,null,"Hudson (09)_Secaucus (09)"]
["Hudson (09)","Union City (10)",null,null,null,"Hudson (09)_Union City (10)"]
["Hudson (09)","Weehawken (11)",null,null,null,"Hudson (09)_Weehawken (11)"]
["Hudson (09)","West New York (12)",null,null,null,{"$f":"CONCATENATE(A259, \"_\", B259)","v":"Hudson (09)_West New York (12)"}]
["Hunterdon (10)","Alexandria (01)",null,null,null,"Hunterdon (10)_Alexandria (01)"]
["Hunterdon (10)","Bethlehem (02)",null,null,null,"Hunterdon (10)_Bethlehem (02)"]
["Hunterdon (10)","Bloomsbury (03)",null,null,null,"Hunterdon (10)_Bloomsbury (03)"]
["Hunterdon (10)","Califon (04)",null,null,null,"Hunterdon (10)_Califon (04)"]
["Hunterdon (10)","Clinton Town (05)",null,null,null,"Hunterdon (10)_Clinton Town (05)"]
["Hunterdon (10)","Clinton Twp (06)",null,null,null,"Hunterdon (10)_Clinton Twp (06)"]
["Hunterdon (10)","Delaware (07)",null,null,null,"Hunterdon (10)_Delaware (07)"]
["Hunterdon (10)","East Amwell (08)",null,null,null,"Hunterdon (10)_East Amwell (08)"]
["Hunterdon (10)","Flemington (09)",null,null,null,"Hunterdon (10)_Flemington (09)"]
["Hunterdon (10)","Franklin (10)",null,null,null,"Hunterdon (10)_Franklin (10)"]
["Hunterdon (10)","Frenchtown (11)",null,null,null,"Hunterdon (10)_Frenchtown (11)"]
["Hunterdon (10)","Glen Gardner (12)",null,null,null,"Hunterdon (10)_Glen Gardner (12)"]
["Hunterdon (10)","Hampton (13)",null,null,null,"Hunterdon (10)_Hampton (13)"]
["Hunterdon (10)","High Bridge (14)",null,null,null,"Hunterdon (10)_High Bridge (14)"]
["Hunterdon (10)","Holland (15)",null,null,null,"Hunterdon (10)_Holland (15)"]
["Hunterdon (10)","Kingwood (16)",null,null,null,"Hunterdon (10)_Kingwood (16)"]
["Hunterdon (10)","Lambertville (17)",null,null,null,"Hunterdon (10)_Lambertville (17)"]
["Hunterdon (10)","Lebanon Boro (18)",null,null,null,"Hunterdon (10)_Lebanon Boro (18)"]
["Hunterdon (10)","Lebanon Twp (19)",null,null,null,"Hunterdon (10)_Lebanon Twp (19)"]
["Hunterdon (10)","Milford (20)",null,null,null,"Hunterdon (10)_Milford (20)"]
["Hunterdon (10)","Raritan (21)",null,null,null,"Hunterdon (10)_Raritan (21)"]
["Hunterdon (10)","Readington (22)",null,null,null,"Hunterdon (10)_Readington (22)"]
["Hunterdon (10)","Stockton (23)",null,null,null,"Hunterdon (10)_Stockton (23)"]
["Hunterdon (10)","Tewksbury (24)",null,null,null,"Hunterdon (10)_Tewksbury (24)"]
["Hunterdon (10)","Union (25)",null,null,null,"Hunterdon (10)_Union (25)"]
["Hunterdon (10)","West Amwell (26)",null,null,null,"Hunterdon (10)_West Amwell (26)"]
["Mercer (11)","East Windsor (01)",null,null,null,"Mercer (11)_East Windsor (01)"]
["Mercer (11)","Ewing (02)",null,null,null,"Mercer (11)_Ewing (02)"]
["Mercer (11)","Hamilton (03)",null,null,null,"Mercer (11)_Hamilton (03)"]
["Mercer (11)","Hightstown (04)",null,null,null,"Mercer (11)_Hightstown (04)"]
["Mercer (11)","Hopewell Boro (05)",null,null,null,"Mercer (11)_Hopewell Boro (05)"]
["Mercer (11)","Hopewell Twp (06)",null,null,null,"Mercer (11)_Hopewell Twp (06)"]
["Mercer (11)","Lawrence  (07)",null,null,null,"Mercer (11)_Lawrence  (07)"]
["Mercer (11)","Pennington (08)",null,null,null,"Mercer (11)_Pennington (08)"]
["Mercer (11)","Trenton (11)",null,null,null,"Mercer (11)_Trenton (11)"]
["Mercer (11)","Robbinsville (12)",null,null,null,"Mercer (11)_Robbinsville (12)"]
["Mercer (11)","West Windsor (13)",null,null,null,"Mercer (11)_West Windsor (13)"]
["Mercer (11)","Princeton (14)",null,null,null,"Mercer (11)_Princeton (14)"]
["Middlesex (12)","Carteret (01)",null,null,null,"Middlesex (12)_Carteret (01)"]
["Middlesex (12)","Cranbury (02)",null,null,null,"Middlesex (12)_Cranbury (02)"]
["Middlesex (12)","Dunellen (03)",null,null,null,"Middlesex (12)_Dunellen (03)"]
["Middlesex (12)","East Brunswick (04)",null,null,null,"Middlesex (12)_East Brunswick (04)"]
["Middlesex (12)","Edison (05)",null,null,null,"Middlesex (12)_Edison (05)"]
["Middlesex (12)","Helmetta (06)",null,null,null,"Middlesex (12)_Helmetta (06)"]
["Middlesex (12)","Highland Park (07)",null,null,null,"Middlesex (12)_Highland Park (07)"]
["Middlesex (12)","Jamesburg (08)",null,null,null,"Middlesex (12)_Jamesburg (08)"]
["Middlesex (12)","Metuchen (09)",null,null,null,"Middlesex (12)_Metuchen (09)"]
["Middlesex (12)","Middlesex (10)",null,null,null,"Middlesex (12)_Middlesex (10)"]
["Middlesex (12)","Milltown (11)",null,null,null,"Middlesex (12)_Milltown (11)"]
["Middlesex (12)","Monroe (12)",null,null,null,"Middlesex (12)_Monroe (12)"]
["Middlesex (12)","New Brunswick (13)",null,null,null,"Middlesex (12)_New Brunswick (13)"]
["Middlesex (12)","North Brunswick (14)",null,null,null,"Middlesex (12)_North Brunswick (14)"]
["Middlesex (12)","Old Bridge (15)",null,null,null,"Middlesex (12)_Old Bridge (15)"]
["Middlesex (12)","Perth Amboy (16)",null,null,null,"Middlesex (12)_Perth Amboy (16)"]
["Middlesex (12)","Piscataway (17)",null,null,null,"Middlesex (12)_Piscataway (17)"]
["Middlesex (12)","Plainsboro (18)",null,null,null,"Middlesex (12)_Plainsboro (18)"]
["Middlesex (12)","Sayreville (19)",null,null,null,"Middlesex (12)_Sayreville (19)"]
["Middlesex (12)","South Amboy (20)",null,null,null,"Middlesex (12)_South Amboy (20)"]
["Middlesex (12)","South Brunswick (21)",null,null,null,"Middlesex (12)_South Brunswick (21)"]
["Middlesex (12)","South Plainfield (22)",null,null,null,"Middlesex (12)_South Plainfield (22)"]
["Middlesex (12)","South River (23)",null,null,null,"Middlesex (12)_South River (23)"]
["Middlesex (12)","Spotswood (24)",null,null,null,"Middlesex (12)_Spotswood (24)"]
["Middlesex (12)","Woodbridge (25)",null,null,null,"Middlesex (12)_Woodbridge (25)"]
["Monmouth (13)","Aberdeen  (01)",null,null,null,{"$f":"CONCATENATE(A323, \"_\", B323)","v":"Monmouth (13)_Aberdeen  (01)"}]
["Monmouth (13)","Allenhurst (02)",null,null,null,"Monmouth (13)_Allenhurst (02)"]
["Monmouth (13)","Allentown (03)",null,null,null,"Monmouth (13)_Allentown (03)"]
["Monmouth (13)","Asbury Park (04)",null,null,null,"Monmouth (13)_Asbury Park (04)"]
["Monmouth (13)","Atlantic Highlands (05)",null,null,null,"Monmouth (13)_Atlantic Highlands (05)"]
["Monmouth (13)","Avon By The Sea (06)",null,null,null,"Monmouth (13)_Avon By The Sea (06)"]
["Monmouth (13)","Belmar (07)",null,null,null,"Monmouth (13)_Belmar (07)"]
["Monmouth (13)","Bradley Beach (08)",null,null,null,"Monmouth (13)_Bradley Beach (08)"]
["Monmouth (13)","Brielle (09)",null,null,null,"Monmouth (13)_Brielle (09)"]
["Monmouth (13)","Colts Neck (10)",null,null,null,"Monmouth (13)_Colts Neck (10)"]
["Monmouth (13)","Deal (11)",null,null,null,"Monmouth (13)_Deal (11)"]
["Monmouth (13)","Eatontown (12)",null,null,null,"Monmouth (13)_Eatontown (12)"]
["Monmouth (13)","Englishtown (13)",null,null,null,"Monmouth (13)_Englishtown (13)"]
["Monmouth (13)","Fair Haven (14)",null,null,null,"Monmouth (13)_Fair Haven (14)"]
["Monmouth (13)","Farmingdale (15)",null,null,null,"Monmouth (13)_Farmingdale (15)"]
["Monmouth (13)","Freehold Boro (16)",null,null,null,"Monmouth (13)_Freehold Boro (16)"]
["Monmouth (13)","Freehold Twp (17)",null,null,null,"Monmouth (13)_Freehold Twp (17)"]
["Monmouth (13)","Hazlet (18)",null,null,null,"Monmouth (13)_Hazlet (18)"]
["Monmouth (13)","Highlands (19)",null,null,null,"Monmouth (13)_Highlands (19)"]
["Monmouth (13)","Holmdel (20)",null,null,null,"Monmouth (13)_Holmdel (20)"]
["Monmouth (13)","Howell (21)",null,null,null,"Monmouth (13)_Howell (21)"]
["Monmouth (13)","Interlaken (22)",null,null,null,"Monmouth (13)_Interlaken (22)"]
["Monmouth (13)","Keansburg (23)",null,null,null,"Monmouth (13)_Keansburg (23)"]
["Monmouth (13)","Keyport (24)",null,null,null,"Monmouth (13)_Keyport (24)"]
["Monmouth (13)","Little Silver (25)",null,null,null,"Monmouth (13)_Little Silver (25)"]
["Monmouth (13)","Loch Arbour (26)",null,null,null,"Monmouth (13)_Loch Arbour (26)"]
["Monmouth (13)","Long Branch (27)",null,null,null,"Monmouth (13)_Long Branch (27)"]
["Monmouth (13)","Manalapan (28)",null,null,null,"Monmouth (13)_Manalapan (28)"]
["Monmouth (13)","Manasquan (29)",null,null,null,"Monmouth (13)_Manasquan (29)"]
["Monmouth (13)","Marlboro (30)",null,null,null,"Monmouth (13)_Marlboro (30)"]
["Monmouth (13)","Matawan (31)",null,null,null,"Monmouth (13)_Matawan (31)"]
["Monmouth (13)","Middletown (32)",null,null,null,"Monmouth (13)_Middletown (32)"]
["Monmouth (13)","Millstone (33)",null,null,null,"Monmouth (13)_Millstone (33)"]
["Monmouth (13)","Monmouth Beach (34)",null,null,null,"Monmouth (13)_Monmouth Beach (34)"]
["Monmouth (13)","Neptune City  (35)",null,null,null,"Monmouth (13)_Neptune City  (35)"]
["Monmouth (13)","Neptune Twp (36)",null,null,null,"Monmouth (13)_Neptune Twp (36)"]
["Monmouth (13)","Ocean (37)",null,null,null,"Monmouth (13)_Ocean (37)"]
["Monmouth (13)","Oceanport (38)",null,null,null,"Monmouth (13)_Oceanport (38)"]
["Monmouth (13)","Red Bank (39)",null,null,null,"Monmouth (13)_Red Bank (39)"]
["Monmouth (13)","Roosevelt (40)",null,null,null,"Monmouth (13)_Roosevelt (40)"]
["Monmouth (13)","Rumson (41)",null,null,null,"Monmouth (13)_Rumson (41)"]
["Monmouth (13)","Sea Bright (42)",null,null,null,"Monmouth (13)_Sea Bright (42)"]
["Monmouth (13)","Sea Girt (43)",null,null,null,"Monmouth (13)_Sea Girt (43)"]
["Monmouth (13)","Shrewsbury Boro (44)",null,null,null,"Monmouth (13)_Shrewsbury Boro (44)"]
["Monmouth (13)","Shrewsbury Twp (45)",null,null,null,"Monmouth (13)_Shrewsbury Twp (45)"]
["Monmouth (13)","Lake Como (46)",null,null,null,"Monmouth (13)_Lake Como (46)"]
["Monmouth (13)","Spring Lake (47)",null,null,null,"Monmouth (13)_Spring Lake (47)"]
["Monmouth (13)","Spring Lake Heights (48)",null,null,null,"Monmouth (13)_Spring Lake Heights (48)"]
["Monmouth (13)","Tinton Falls (49)",null,null,null,"Monmouth (13)_Tinton Falls (49)"]
["Monmouth (13)","Union Beach (50)",null,null,null,"Monmouth (13)_Union Beach (50)"]
["Monmouth (13)","Upper Freehold (51)",null,null,null,"Monmouth (13)_Upper Freehold (51)"]
["Monmouth (13)","Wall (52)",null,null,null,"Monmouth (13)_Wall (52)"]
["Monmouth (13)","West Long Branch (53)",null,null,null,"Monmouth (13)_West Long Branch (53)"]
["Morris (14)","Boonton Town (01)",null,null,null,"Morris (14)_Boonton Town (01)"]
["Morris (14)","Boonton Twp (02)",null,null,null,"Morris (14)_Boonton Twp (02)"]
["Morris (14)","Butler (03)",null,null,null,"Morris (14)_Butler (03)"]
["Morris (14)","Chatham Boro (04)",null,null,null,"Morris (14)_Chatham Boro (04)"]
["Morris (14)","Chatham Twp (05)",null,null,null,"Morris (14)_Chatham Twp (05)"]
["Morris (14)","Chester Boro (06)",null,null,null,"Morris (14)_Chester Boro (06)"]
["Morris (14)","Chester Twp (07)",null,null,null,"Morris (14)_Chester Twp (07)"]
["Morris (14)","Denville (08)",null,null,null,"Morris (14)_Denville (08)"]
["Morris (14)","Dover (09)",null,null,null,"Morris (14)_Dover (09)"]
["Morris (14)","East Hanover  (10)",null,null,null,"Morris (14)_East Hanover  (10)"]
["Morris (14)","Florham Park (11)",null,null,null,"Morris (14)_Florham Park (11)"]
["Morris (14)","Hanover (12)",null,null,null,{"$f":"CONCATENATE(A387, \"_\", B387)","v":"Morris (14)_Hanover (12)"}]
["Morris (14)","Harding (13)",null,null,null,"Morris (14)_Harding (13)"]
["Morris (14)","Jefferson (14)",null,null,null,"Morris (14)_Jefferson (14)"]
["Morris (14)","Kinnelon (15)",null,null,null,"Morris (14)_Kinnelon (15)"]
["Morris (14)","Lincoln Park (16)",null,null,null,"Morris (14)_Lincoln Park (16)"]
["Morris (14)","Madison (17)",null,null,null,"Morris (14)_Madison (17)"]
["Morris (14)","Mendham Boro (18)",null,null,null,"Morris (14)_Mendham Boro (18)"]
["Morris (14)","Mendham Twp (19)",null,null,null,"Morris (14)_Mendham Twp (19)"]
["Morris (14)","Mine Hill (20)",null,null,null,"Morris (14)_Mine Hill (20)"]
["Morris (14)","Montville (21)",null,null,null,"Morris (14)_Montville (21)"]
["Morris (14)","Morris (22)",null,null,null,"Morris (14)_Morris (22)"]
["Morris (14)","Morris Plains (23)",null,null,null,"Morris (14)_Morris Plains (23)"]
["Morris (14)","Morristown (24)",null,null,null,"Morris (14)_Morristown (24)"]
["Morris (14)","Mountain Lakes (25)",null,null,null,"Morris (14)_Mountain Lakes (25)"]
["Morris (14)","Mount Arlington (26)",null,null,null,"Morris (14)_Mount Arlington (26)"]
["Morris (14)","Mount Olive (27)",null,null,null,"Morris (14)_Mount Olive (27)"]
["Morris (14)","Netcong (28)",null,null,null,"Morris (14)_Netcong (28)"]
["Morris (14)","Parsippany-Troy Hills (29)",null,null,null,"Morris (14)_Parsippany-Troy Hills (29)"]
["Morris (14)","Long Hill (30)",null,null,null,"Morris (14)_Long Hill (30)"]
["Morris (14)","Pequannock (31)",null,null,null,"Morris (14)_Pequannock (31)"]
["Morris (14)","Randolph (32)",null,null,null,"Morris (14)_Randolph (32)"]
["Morris (14)","Riverdale (33)",null,null,null,"Morris (14)_Riverdale (33)"]
["Morris (14)","Rockaway Boro (34)",null,null,null,"Morris (14)_Rockaway Boro (34)"]
["Morris (14)","Rockaway Twp (35)",null,null,null,"Morris (14)_Rockaway Twp (35)"]
["Morris (14)","Roxbury (36)",null,null,null,"Morris (14)_Roxbury (36)"]
["Morris (14)","Victory Gardens (37)",null,null,null,"Morris (14)_Victory Gardens (37)"]
["Morris (14)","Washington (38)",null,null,null,"Morris (14)_Washington (38)"]
["Morris (14)","Wharton (39)",null,null,null,"Morris (14)_Wharton (39)"]
["Ocean (15)","Barnegat (01)",null,null,null,"Ocean (15)_Barnegat (01)"]
["Ocean (15)","Barnegat Light (02)",null,null,null,"Ocean (15)_Barnegat Light (02)"]
["Ocean (15)","Bay Head (03)",null,null,null,"Ocean (15)_Bay Head (03)"]
["Ocean (15)","Beach Haven (04)",null,null,null,"Ocean (15)_Beach Haven (04)"]
["Ocean (15)","Beachwood (05)",null,null,null,"Ocean (15)_Beachwood (05)"]
["Ocean (15)","Berkeley (06)",null,null,null,"Ocean (15)_Berkeley (06)"]
["Ocean (15)","Brick (07)",null,null,null,"Ocean (15)_Brick (07)"]
["Ocean (15)","Toms River (08)",null,null,null,"Ocean (15)_Toms River (08)"]
["Ocean (15)","Eagleswood (09)",null,null,null,"Ocean (15)_Eagleswood (09)"]
["Ocean (15)","Harvey Cedars (10)",null,null,null,"Ocean (15)_Harvey Cedars (10)"]
["Ocean (15)","Island Heights (11)",null,null,null,"Ocean (15)_Island Heights (11)"]
["Ocean (15)","Jackson (12)",null,null,null,"Ocean (15)_Jackson (12)"]
["Ocean (15)","Lacey (13)",null,null,null,"Ocean (15)_Lacey (13)"]
["Ocean (15)","Lakehurst (14)",null,null,null,"Ocean (15)_Lakehurst (14)"]
["Ocean (15)","Lakewood (15)",null,null,null,"Ocean (15)_Lakewood (15)"]
["Ocean (15)","Lavallette (16)",null,null,null,"Ocean (15)_Lavallette (16)"]
["Ocean (15)","Little Egg Harbor (17)",null,null,null,"Ocean (15)_Little Egg Harbor (17)"]
["Ocean (15)","Long Beach (18)",null,null,null,"Ocean (15)_Long Beach (18)"]
["Ocean (15)","Manchester (19)",null,null,null,"Ocean (15)_Manchester (19)"]
["Ocean (15)","Mantoloking (20)",null,null,null,"Ocean (15)_Mantoloking (20)"]
["Ocean (15)","Ocean (21)",null,null,null,"Ocean (15)_Ocean (21)"]
["Ocean (15)","Ocean Gate (22)",null,null,null,"Ocean (15)_Ocean Gate (22)"]
["Ocean (15)","Pine Beach (23)",null,null,null,"Ocean (15)_Pine Beach (23)"]
["Ocean (15)","Plumsted (24)",null,null,null,"Ocean (15)_Plumsted (24)"]
["Ocean (15)","Point Pleasant (25)",null,null,null,"Ocean (15)_Point Pleasant (25)"]
["Ocean (15)","Point Pleasant Beach (26)",null,null,null,"Ocean (15)_Point Pleasant Beach (26)"]
["Ocean (15)","Seaside Heights (27)",null,null,null,"Ocean (15)_Seaside Heights (27)"]
["Ocean (15)","Seaside Park (28)",null,null,null,"Ocean (15)_Seaside Park (28)"]
["Ocean (15)","Ship Bottom (29)",null,null,null,"Ocean (15)_Ship Bottom (29)"]
["Ocean (15)","South Toms River (30)",null,null,null,"Ocean (15)_South Toms River (30)"]
["Ocean (15)","Stafford (31)",null,null,null,"Ocean (15)_Stafford (31)"]
["Ocean (15)","Surf City (32)",null,null,null,"Ocean (15)_Surf City (32)"]
["Ocean (15)","Tuckerton (33)",null,null,null,"Ocean (15)_Tuckerton (33)"]
["Passaic (16)","Bloomingdale (01)",null,null,null,"Passaic (16)_Bloomingdale (01)"]
["Passaic (16)","Clifton (02)",null,null,null,"Passaic (16)_Clifton (02)"]
["Passaic (16)","Haledon (03)",null,null,null,"Passaic (16)_Haledon (03)"]
["Passaic (16)","Hawthorne (04)",null,null,null,{"$f":"CONCATENATE(A451, \"_\", B451)","v":"Passaic (16)_Hawthorne (04)"}]
["Passaic (16)","Little Falls (05)",null,null,null,"Passaic (16)_Little Falls (05)"]
["Passaic (16)","North Haledon (06)",null,null,null,"Passaic (16)_North Haledon (06)"]
["Passaic (16)","Passaic (07)",null,null,null,"Passaic (16)_Passaic (07)"]
["Passaic (16)","Paterson (08)",null,null,null,"Passaic (16)_Paterson (08)"]
["Passaic (16)","Pompton Lakes (09)",null,null,null,"Passaic (16)_Pompton Lakes (09)"]
["Passaic (16)","Prospect Park (10)",null,null,null,"Passaic (16)_Prospect Park (10)"]
["Passaic (16)","Ringwood (11)",null,null,null,"Passaic (16)_Ringwood (11)"]
["Passaic (16)","Totowa (12)",null,null,null,"Passaic (16)_Totowa (12)"]
["Passaic (16)","Wanaque (13)",null,null,null,"Passaic (16)_Wanaque (13)"]
["Passaic (16)","Wayne (14)",null,null,null,"Passaic (16)_Wayne (14)"]
["Passaic (16)","West Milford (15)",null,null,null,"Passaic (16)_West Milford (15)"]
["Passaic (16)","Woodland Park (16)",null,null,null,"Passaic (16)_Woodland Park (16)"]
["Salem (17)","Alloway (01)",null,null,null,"Salem (17)_Alloway (01)"]
["Salem (17)","Carneys Point (02)",null,null,null,"Salem (17)_Carneys Point (02)"]
["Salem (17)","Elmer (03)",null,null,null,"Salem (17)_Elmer (03)"]
["Salem (17)","Oldmans (07)",null,null,null,"Salem (17)_Oldmans (07)"]
["Salem (17)","Penns Grove (08)",null,null,null,"Salem (17)_Penns Grove (08)"]
["Salem (17)","Pennsville (09)",null,null,null,"Salem (17)_Pennsville (09)"]
["Salem (17)","Pilesgrove (10)",null,null,null,"Salem (17)_Pilesgrove (10)"]
["Salem (17)","Pittsgrove (11)",null,null,null,"Salem (17)_Pittsgrove (11)"]
["Salem (17)","Quinton (12)",null,null,null,"Salem (17)_Quinton (12)"]
["Salem (17)","Salem (13)",null,null,null,"Salem (17)_Salem (13)"]
["Salem (17)","Upper Pittsgrove (14)",null,null,null,"Salem (17)_Upper Pittsgrove (14)"]
["Salem (17)","Woodstown (15)",null,null,null,"Salem (17)_Woodstown (15)"]
["Salem (17)","LACEM (99)",null,null,null,"Salem (17)_LACEM (99)"]
["Somerset (18)","Bedminster (01)",null,null,null,"Somerset (18)_Bedminster (01)"]
["Somerset (18)","Bernards (02)",null,null,null,"Somerset (18)_Bernards (02)"]
["Somerset (18)","Bernardsville  (03)",null,null,null,"Somerset (18)_Bernardsville  (03)"]
["Somerset (18)","Bound Brook (04)",null,null,null,"Somerset (18)_Bound Brook (04)"]
["Somerset (18)","Branchburg (05)",null,null,null,"Somerset (18)_Branchburg (05)"]
["Somerset (18)","Bridgewater (06)",null,null,null,"Somerset (18)_Bridgewater (06)"]
["Somerset (18)","Far Hills (07)",null,null,null,"Somerset (18)_Far Hills (07)"]
["Somerset (18)","Franklin (08)",null,null,null,"Somerset (18)_Franklin (08)"]
["Somerset (18)","Green Brook (09)",null,null,null,"Somerset (18)_Green Brook (09)"]
["Somerset (18)","Hillsborough (10)",null,null,null,"Somerset (18)_Hillsborough (10)"]
["Somerset (18)","Manville (11)",null,null,null,"Somerset (18)_Manville (11)"]
["Somerset (18)","Millstone (12)",null,null,null,"Somerset (18)_Millstone (12)"]
["Somerset (18)","Montgomery (13)",null,null,null,"Somerset (18)_Montgomery (13)"]
["Somerset (18)","North Plainfield (14)",null,null,null,"Somerset (18)_North Plainfield (14)"]
["Somerset (18)","Peapack - Gladstone (15)",null,null,null,"Somerset (18)_Peapack - Gladstone (15)"]
["Somerset (18)","Raritan (16)",null,null,null,"Somerset (18)_Raritan (16)"]
["Somerset (18)","Rocky Hill (17)",null,null,null,"Somerset (18)_Rocky Hill (17)"]
["Somerset (18)","Somerville (18)",null,null,null,"Somerset (18)_Somerville (18)"]
["Somerset (18)","South Bound Brook (19)",null,null,null,"Somerset (18)_South Bound Brook (19)"]
["Somerset (18)","Warren (20)",null,null,null,"Somerset (18)_Warren (20)"]
["Somerset (18)","Watchung (21)",null,null,null,"Somerset (18)_Watchung (21)"]
["Sussex (19)","Andover Boro (01)",null,null,null,"Sussex (19)_Andover Boro (01)"]
["Sussex (19)","Andover Twp (02)",null,null,null,"Sussex (19)_Andover Twp (02)"]
["Sussex (19)","Branchville (03)",null,null,null,"Sussex (19)_Branchville (03)"]
["Sussex (19)","Byram (04)",null,null,null,"Sussex (19)_Byram (04)"]
["Sussex (19)","Frankford (05)",null,null,null,"Sussex (19)_Frankford (05)"]
["Sussex (19)","Franklin (06)",null,null,null,"Sussex (19)_Franklin (06)"]
["Sussex (19)","Fredon (07)",null,null,null,"Sussex (19)_Fredon (07)"]
["Sussex (19)","Green (08)",null,null,null,"Sussex (19)_Green (08)"]
["Sussex (19)","Hamburg (09)",null,null,null,"Sussex (19)_Hamburg (09)"]
["Sussex (19)","Hampton (10)",null,null,null,"Sussex (19)_Hampton (10)"]
["Sussex (19)","Hardyston (11)",null,null,null,"Sussex (19)_Hardyston (11)"]
["Sussex (19)","Hopatcong (12)",null,null,null,"Sussex (19)_Hopatcong (12)"]
["Sussex (19)","Lafayette (13)",null,null,null,"Sussex (19)_Lafayette (13)"]
["Sussex (19)","Montague (14)",null,null,null,"Sussex (19)_Montague (14)"]
["Sussex (19)","Newton (15)",null,null,null,"Sussex (19)_Newton (15)"]
["Sussex (19)","Ogdensburg (16)",null,null,null,"Sussex (19)_Ogdensburg (16)"]
["Sussex (19)","Sandyston (17)",null,null,null,"Sussex (19)_Sandyston (17)"]
["Sussex (19)","Sparta (18)",null,null,null,{"$f":"CONCATENATE(A515, \"_\", B515)","v":"Sussex (19)_Sparta (18)"}]
["Sussex (19)","Stanhope (19)",null,null,null,"Sussex (19)_Stanhope (19)"]
["Sussex (19)","Stillwater (20)",null,null,null,"Sussex (19)_Stillwater (20)"]
["Sussex (19)","Sussex (21)",null,null,null,"Sussex (19)_Sussex (21)"]
["Sussex (19)","Vernon (22)",null,null,null,"Sussex (19)_Vernon (22)"]
["Sussex (19)","Walpack (23)",null,null,null,"Sussex (19)_Walpack (23)"]
["Sussex (19)","Wantage (24)",null,null,null,"Sussex (19)_Wantage (24)"]
["Union (20)","Berkeley Heights (01)",null,null,null,"Union (20)_Berkeley Heights (01)"]
["Union (20)","Clark (02)",null,null,null,"Union (20)_Clark (02)"]
["Union (20)","Cranford (03)",null,null,null,"Union (20)_Cranford (03)"]
["Union (20)","Elizabeth (04)",null,null,null,"Union (20)_Elizabeth (04)"]
["Union (20)","Fanwood (05)",null,null,null,"Union (20)_Fanwood (05)"]
["Union (20)","Garwood (06)",null,null,null,"Union (20)_Garwood (06)"]
["Union (20)","Hillside (07)",null,null,null,"Union (20)_Hillside (07)"]
["Union (20)","Kenilworth (08)",null,null,null,"Union (20)_Kenilworth (08)"]
["Union (20)","Linden (09)",null,null,null,"Union (20)_Linden (09)"]
["Union (20)","Mountainside (10)",null,null,null,"Union (20)_Mountainside (10)"]
["Union (20)","New Providence (11)",null,null,null,"Union (20)_New Providence (11)"]
["Union (20)","Plainfield (12)",null,null,null,"Union (20)_Plainfield (12)"]
["Union (20)","Rahway (13)",null,null,null,"Union (20)_Rahway (13)"]
["Union (20)","Roselle (14)",null,null,null,"Union (20)_Roselle (14)"]
["Union (20)","Roselle Park (15)",null,null,null,"Union (20)_Roselle Park (15)"]
["Union (20)","Scotch Plains (16)",null,null,null,"Union (20)_Scotch Plains (16)"]
["Union (20)","Springfield (17)",null,null,null,"Union (20)_Springfield (17)"]
["Union (20)","Summit (18)",null,null,null,"Union (20)_Summit (18)"]
["Union (20)","Union (19)",null,null,null,"Union (20)_Union (19)"]
["Union (20)","Westfield (20)",null,null,null,"Union (20)_Westfield (20)"]
["Union (20)","Winfield (21)",null,null,null,"Union (20)_Winfield (21)"]
["Warren (21)","Allamuchy (01)",null,null,null,"Warren (21)_Allamuchy (01)"]
["Warren (21)","Alpha (02)",null,null,null,"Warren (21)_Alpha (02)"]
["Warren (21)","Belvidere (03)",null,null,null,"Warren (21)_Belvidere (03)"]
["Warren (21)","Blairstown (04)",null,null,null,"Warren (21)_Blairstown (04)"]
["Warren (21)","Franklin (05)",null,null,null,"Warren (21)_Franklin (05)"]
["Warren (21)","Frelinghuysen (06)",null,null,null,"Warren (21)_Frelinghuysen (06)"]
["Warren (21)","Greenwich (07)",null,null,null,"Warren (21)_Greenwich (07)"]
["Warren (21)","Hackettstown (08)",null,null,null,"Warren (21)_Hackettstown (08)"]
["Warren (21)","Hardwick (09)",null,null,null,"Warren (21)_Hardwick (09)"]
["Warren (21)","Harmony (10)",null,null,null,"Warren (21)_Harmony (10)"]
["Warren (21)","Hope (11)",null,null,null,"Warren (21)_Hope (11)"]
["Warren (21)","Independence (12)",null,null,null,"Warren (21)_Independence (12)"]
["Warren (21)","Knowlton (13)",null,null,null,"Warren (21)_Knowlton (13)"]
["Warren (21)","Liberty (14)",null,null,null,"Warren (21)_Liberty (14)"]
["Warren (21)","Lopatcong (15)",null,null,null,"Warren (21)_Lopatcong (15)"]
["Warren (21)","Mansfield (16)",null,null,null,"Warren (21)_Mansfield (16)"]
["Warren (21)","Oxford (17)",null,null,null,"Warren (21)_Oxford (17)"]
["Warren (21)","Pahaquarry (18)",null,null,null,"Warren (21)_Pahaquarry (18)"]
["Warren (21)","Phillipsburg (19)",null,null,null,"Warren (21)_Phillipsburg (19)"]
["Warren (21)","Pohatcong (20)",null,null,null,"Warren (21)_Pohatcong (20)"]
["Warren (21)","Washington Borough (21)",null,null,null,"Warren (21)_Washington Borough (21)"]
["Warren (21)","Washington Township (22)",null,null,null,"Warren (21)_Washington Township (22)"]
["Warren (21)","White Twp (23)",null,null,null,"Warren (21)_White Twp (23)"]

{"sheet":"Materials","index":8,"n_rows":35,"n_cols":6,"rows_kept":35,"cut":false,"hidden":true,"merged":[]}
["Material","DEPID",null,"Sector"]
[null,null,null,"Commercial"]
["Corrugated (01)","01",null,"Residential"]
["Mixed Office Paper (02)","02",null,"Industrial (Factory)"]
["Newspaper (03)","03",null,"Institutional"]
["Other Paper/Mag/JunkMail (04)","04"]
["Glass Containers (05)","05",null,null,null,"Test"]
["Aluminum Containers (06)","06"]
["Steel Containers (07)","07"]
["Plastic Containers (08)","08"]
["Heavy Iron (09)","09"]
["NonFerrous/Aluminum Scrap (10)","10"]
["White Goods & Light Iron (11)","11"]
["Anti-freeze (12)","12"]
["Batteries (Automobile) (13)","13"]
["Automobile Scrap (14)","14"]
["Tires (15)","15"]
["Used Motor Oil (16)","16"]
["Brush/Tree Parts (17)","17"]
["Grass Clippings (18)","18"]
["Leaves (19)","19"]
["Stumps (20)","20"]
["Consumer Electronics (21)","21"]
["Concrete / Asphalt / Brick / Block (22)","22"]
["Food Waste (23)","23"]
["Other Material Not Listed (24)","24"]
["Fluorescent Lights (24)","24"]
["Batteries (Dry Cell) (24)","24"]
["Paints & Stain (24)","24"]
["Other Glass (25)","25"]
["Other Plastic (26)","26"]
["Oil Contaminated Soil (27)","27"]
["Process Residue (28)","28"]
["Textiles (29)","29"]
["Wood Scraps (30)","30"]